fUSD/lending_fUSD_20250419
["ID","MTS","AMOUNT","RATE_DAILY","PERIOD"]
[358416958,1745098231921,-216.14309784,0.00019547,2]
[358416959,1745098231937,-83.85690216,0.00019547,2]
[358416960,1745098231948,-506.14310784,0.00019548,2]
[358416961,1745098231972,-931.72871718,0.00019548,2]
[358416962,1745098231984,-1351.34433458,0.00019548,2]
[358416963,1745098231995,-959.69674344,0.00019548,2]
[358416964,1745098232032,-4018.92116591,0.00019548,2]
[358417004,1745098238051,-16132.16593105,0.00019548,2]
[358417005,1745098238062,-1562.69,0.00019608,2]
[358417006,1745098238071,-3981.96790809,0.0001979,2]
[358417007,1745098238080,-1000.0,0.0001979,2]
[358417008,1745098238090,-201.1000255,0.00019799,2]
[358417009,1745098238100,-4423.3065,0.000198,2]
[358417010,1745098238119,-19375.2623,0.000198,2]
[358417011,1745098238129,-1000.0,0.000198,2]
[358417012,1745098238139,-174.55279064,0.000198,2]
[358417013,1745098238149,-219.75,0.00019832,2]
[358417014,1745098238160,-189.25,0.00019847,2]
[358417015,1745098238169,-503.82999379,0.00019873,2]
[358417016,1745098238179,-500.0,0.00019873,2]
[358417017,1745098238189,-500.0,0.00019873,2]
[358417018,1745098238198,-11334.1,0.00019875,2]
[358417019,1745098238207,-4070.24,0.00019875,2]
[358417020,1745098238217,-200.0,0.00019879,2]
[358417021,1745098238227,-88216.81388114,0.000199,2]
[358417022,1745098238238,-2676.7269,0.000199,2]
[358417023,1745098238248,-155.765,0.000199,2]
[358417024,1745098238258,-7632.3084,0.000199,2]
[358417025,1745098238268,-1437.6633,0.000199,2]
[358417026,1745098238278,-2204.9109,0.000199,2]
[358417027,1745098238289,-16049.0176,0.000199,2]
[358417028,1745098238299,-1405.5238,0.000199,2]
[358417029,1745098238308,-1801.134,0.000199,2]
[358417030,1745098238318,-303.5169,0.000199,2]
[358417031,1745098238328,-1661.0542,0.000199,2]
[358417032,1745098238338,-934.1242,0.000199,2]
[358417033,1745098238348,-500.0,0.000199,2]
[358417034,1745098238358,-11014.3941,0.000199,2]
[358417035,1745098238367,-11016.73765245,0.000199,2]
[358417036,1745098238376,-228.32001182,0.000199,2]
[358417037,1745098238386,-103325.0395584,0.000199,2]
[358417052,1745098242782,-300.0,0.00019547,2]
[358417053,1745098242840,-17.96127505,0.00019547,2]
[358417054,1745098242850,-578.0142,0.000198,2]
[358417055,1745098242860,-404.02452495,0.000199,2]
[358417056,1745098242897,-1835.91520175,0.000199,2]
[358417057,1745098242907,-286.31189666,0.000199,2]
[358417058,1745098242916,-928.5093955,0.000199,2]
[358417059,1745098242925,-3786.09099931,0.00019973,2]
[358417060,1745098242937,-2832.08973658,0.00019973,2]
[358417064,1745098244473,-2582.81926411,0.00019973,2]
[358417065,1745098244483,-487.24439259,0.00019973,2]
[358417066,1745098244492,-500.0,0.00019973,2]
[358417067,1745098244502,-500.0,0.00019973,2]
[358417068,1745098244511,-500.0,0.00019973,2]
[358417069,1745098244521,-501.57851944,0.00019973,2]
[358417070,1745098244531,-500.0,0.00019973,2]
[358417071,1745098244541,-500.62935892,0.00019973,2]
[358417072,1745098244550,-500.0,0.00019973,2]
[358417073,1745098244560,-170.84190683,0.00019973,2]
[358417074,1745098244569,-503.7365901,0.00019973,2]
[358417075,1745098244578,-502.21095876,0.00019973,2]
[358417076,1745098244588,-794.0,0.00019985,2]
[358417077,1745098244598,-870.126,0.00019995,2]
[358417078,1745098244607,-531.478,0.00019995,2]
[358417079,1745098244617,-152.0,0.00019995,2]
[358417080,1745098244626,-150.0,0.00019999,2]
[358417081,1745098244636,-1852.42,0.00019999,2]
[358417082,1745098244646,-500.0,0.00019999,2]
[358417083,1745098244656,-500.0,0.00019999,2]
[358417084,1745098244665,-2001.07006835,0.00019999,2]
[358417085,1745098244674,-86952.43924581,0.0002,2]
[358417086,1745098244694,-856.86498203,0.0002,2]
[358417088,1745098245865,-381.15000012,0.0002,2]
[358417089,1745098245926,-1120.12,0.0002,2]
[358417090,1745098245940,-1280.91876495,0.0002,2]
[358417092,1745098281627,-191.0450242,0.00019799,2]
[358417093,1745098281656,-300.0,0.00019984,2]
[358417094,1745098281692,-897.0,0.00019985,2]
[358417095,1745098281723,-545.0,0.00019985,2]
[358417096,1745098281752,-4149.0,0.00019985,2]
[358417097,1745098281781,-267.9549758,0.00019985,2]
[358417100,1745098441485,250.0,0.000198,5]
[358417101,1745098638661,-1628.19,0.00019601,2]
[358417102,1745098643072,-192.0769848,0.00019799,2]
[358417103,1745098643097,-300.0,0.00019799,2]
[358417104,1745098643120,-300.0,0.00019799,2]
[358417105,1745098643144,-1087.9230152,0.000198,2]
[358417106,1745098648251,-21901.6953848,0.000198,2]
[358417108,1745098710753,184.456,0.00039713,55]
[358417109,1745098711323,-182.4731356,0.00019799,2]
[358417110,1745098711350,-1972.21948766,0.000198,2]
[358417111,1745098756480,-233.42,0.00019564,2]
[358417112,1745098817719,449.32,0.00019402,2]
[358417113,1745098875618,759.61,0.00019103,2]
[358417115,1745098921228,10274.29,0.00019103,2]
[358417116,1745098953643,200.0,0.00019178,2]
[358417117,1745098956774,1000.0,0.00019208,2]
[358417119,1745098981549,209.97,0.00019178,2]
[358417120,1745098992907,-1556.7139905,0.0001979,2]
[358417121,1745098992955,-173.3494788,0.00019799,2]
[358417122,1745098993004,-300.0,0.00019799,2]
[358417123,1745098993053,-300.0,0.00019799,2]
[358417124,1745098993101,-588.5641499,0.000198,2]
[358417125,1745098993147,-2500.0,0.000198,2]
[358417126,1745098993192,-1972.21948762,0.00019811,2]
[358417127,1745098993239,-588.56414981,0.00019811,2]
[358417128,1745098993286,-250.0,0.0001982,2]
[358417129,1745098993332,-300.0,0.00019821,2]
[358417130,1745098993380,-1972.21948762,0.00019822,2]
[358417131,1745098993427,-588.56414981,0.00019822,2]
[358417132,1745098993473,-500.0,0.00019825,2]
[358417133,1745098993518,-1972.21948762,0.00019833,2]
[358417134,1745098993562,-588.56414981,0.00019833,2]
[358417135,1745098993605,-1972.21948762,0.00019844,2]
[358417136,1745098993658,-588.56414981,0.00019844,2]
[358417137,1745098993712,-1972.21948762,0.00019856,2]
[358417138,1745098993762,-588.56414981,0.00019856,2]
[358417139,1745098993810,-1972.21948762,0.00019867,2]
[358417140,1745098993862,-588.56414981,0.00019867,2]
[358417141,1745098993911,-574.0,0.00019872,2]
[358417142,1745098993958,-500.0,0.00019873,2]
[358417143,1745098994008,-500.0,0.00019873,2]
[358417144,1745098994063,-500.0,0.00019873,2]
[358417145,1745098994113,-500.0,0.00019873,2]
[358417146,1745098994164,-1972.21948762,0.00019878,2]
[358417147,1745098994214,-588.56414981,0.00019878,2]
[358417148,1745098994262,-1972.21948762,0.00019889,2]
[358417149,1745098994310,-588.56414981,0.00019889,2]
[358417150,1745098994357,-14726.17486589,0.0001989,2]
[358417151,1745098994414,-427.51,0.0001989,2]
[358417152,1745098994472,-427.51,0.0001989,2]
[358417153,1745098994528,-427.51,0.0001989,2]
[358417154,1745098994577,-427.51,0.0001989,2]
[358417155,1745098994628,-427.51,0.0001989,2]
[358417156,1745098994680,-427.51,0.0001989,2]
[358417157,1745098994736,-427.51,0.0001989,2]
[358417158,1745098994782,-427.51,0.0001989,2]
[358417159,1745098994830,-427.51,0.0001989,2]
[358417160,1745098994878,-427.51,0.0001989,2]
[358417161,1745098994928,-351878.7981,0.000199,2]
[358417162,1745098994977,-182.35642941,0.000199,2]
[358417163,1745098995024,-330.25468844,0.000199,2]
[358417164,1745098995073,-1972.21948762,0.000199,2]
[358417165,1745098995129,-588.56414981,0.000199,2]
[358417166,1745098995177,-262.45257195,0.000199,2]
[358417167,1745098995227,-464.49496902,0.000199,2]
[358417168,1745098995276,-3884.13126529,0.000199,2]
[358417169,1745098995529,-5967.08923099,0.000199,2]
[358417170,1745098995582,-500.0,0.00019973,2]
[358417171,1745098995630,-500.0,0.00019973,2]
[358417172,1745098995678,-308.0450242,0.00019985,2]
[358417173,1745098995730,-155.39,0.0001999,2]
[358417174,1745098995780,-152.0,0.00019995,2]
[358417175,1745098995829,-867.0,0.00019995,2]
[358417176,1745098995879,-300.0,0.00019999,2]
[358417177,1745098995929,-500.0,0.00019999,2]
[358417178,1745098995979,-500.0,0.00019999,2]
[358417179,1745098996030,-2582157.03249874,0.0002,2]
[358417180,1745099001858,-3000000.0,0.0002,2]
[358417181,1745099012021,529.51138379,0.00048431,120]
[358417182,1745099038338,-164.6820049,0.00019799,2]
[358417183,1745099038383,-75106.57564908,0.0002,2]
[358417184,1745099038430,-20136.50915219,0.0002,2]
[358417185,1745099038471,-10000.0,0.0002,2]
[358417186,1745099038512,-4296.83356746,0.0002,2]
[358417187,1745099038553,-50000.0,0.0002,2]
[358417188,1745099038595,-1804.6,0.0002,2]
[358417189,1745099038638,-6653.0,0.0002,2]
[358417190,1745099038840,-5644.60057402,0.0002,2]
[358417191,1745099038886,-2563141.78807426,0.0002,2]
[358417192,1745099038930,-52305.04386392,0.0002,2]
[358417193,1745099038975,-210746.36711417,0.0002,2]
[358417194,1745099094738,189.03,0.00027425,30]
[358417195,1745099126231,150.0,0.000438,70]
[358417196,1745099135399,192.607,0.000438,30]
[358417197,1745099141218,150.0,0.000438,30]
[358417198,1745099146962,150.0,0.000438,30]
[358417199,1745099153137,150.0,0.000438,30]
[358417200,1745099158689,150.0,0.000438,30]
[358417201,1745099169866,150.0,0.000438,30]
[358417202,1745099174957,154.894,0.000438,30]
[358417203,1745099181009,150.0,0.000438,30]
[358417204,1745099192848,150.0,0.000438,30]
[358417205,1745099204336,150.0,0.000438,30]
[358417206,1745099216110,150.0,0.000438,30]
[358417207,1745099227673,150.0,0.000438,30]
[358417208,1745099279333,-173.3494788,0.00019799,2]
[358417209,1745099279355,-300.0,0.00019899,2]
[358417210,1745099279376,-938.6505212,0.000199,2]
[358417234,1745099431894,-164.6820049,0.00019799,2]
[358417235,1745099431903,-1556.7139905,0.0001988,2]
[358417236,1745099431913,-300.0,0.00019899,2]
[358417237,1745099431922,-574.0,0.00019899,2]
[358417238,1745099431932,-300.0,0.00019899,2]
[358417239,1745099431941,-300.0,0.00019899,2]
[358417240,1745099431951,-1972.21948762,0.000199,2]
[358417241,1745099431960,-179.54374065,0.000199,2]
[358417242,1745099431969,-3978.05948734,0.000199,2]
[358417243,1745099431979,-5885.64149819,0.000199,2]
[358417244,1745099431988,-150.0,0.00019945,2]
[358417245,1745099431998,-500.0,0.00019973,2]
[358417246,1745099432007,-500.0,0.00019973,2]
[358417247,1745099432017,-500.0,0.00019973,2]
[358417248,1745099432026,-500.0,0.00019973,2]
[358417249,1745099432035,-155.39,0.0001999,2]
[358417250,1745099432045,-427.51,0.0001999,2]
[358417251,1745099432054,-427.51,0.0001999,2]
[358417252,1745099432063,-427.51,0.0001999,2]
[358417253,1745099432073,-427.51,0.0001999,2]
[358417254,1745099432083,-427.51,0.0001999,2]
[358417255,1745099432092,-427.51,0.0001999,2]
[358417256,1745099432101,-427.51,0.0001999,2]
[358417257,1745099432111,-427.51,0.0001999,2]
[358417258,1745099432121,-427.51,0.0001999,2]
[358417259,1745099432130,-427.51,0.0001999,2]
[358417260,1745099432139,-1328.0,0.00019995,2]
[358417261,1745099432149,-914.0,0.00019995,2]
[358417262,1745099432158,-794.0,0.00019995,2]
[358417263,1745099432168,-576.0,0.00019995,2]
[358417264,1745099432177,-867.0,0.00019995,2]
[358417265,1745099432187,-152.0,0.00019995,2]
[358417266,1745099432196,-80.14489384,0.00019999,2]
[358417267,1745099432228,-219.85510616,0.00019999,2]
[358417268,1745099432238,-500.0,0.00019999,2]
[358417269,1745099432248,-500.0,0.00019999,2]
[358417270,1745099432257,-0.60887595,0.00019999,2]
[358417271,1745099432269,-3289.3190566,0.00019999,2]
[358417272,1745099432321,-1192.94192931,0.00019999,2]
[358417273,1745099432330,-8832.81650069,0.0002,2]
[358417274,1745099432341,-952.66152001,0.0002,2]
[358417275,1745099432358,-407.0,0.0002,2]
[358417276,1745099432369,-289.89542101,0.0002,2]
[358417277,1745099432393,-295.63119378,0.0002,2]
[358417278,1745099432405,-3075.0,0.0002,2]
[358417279,1745099432416,-31194.7925317,0.0002,2]
[358417281,1745099432438,-1594.0,0.0002,2]
[358417283,1745099432449,-2111.50799,0.0002,2]
[358417286,1745099432468,-50639.82465451,0.0002,2]
[358417310,1745099438171,-10050.43970292,0.0002,2]
[358417311,1745099438291,-20.79531173,0.0002,2]
[358417312,1745099438302,-1942.4,0.0002,2]
[358417313,1745099438313,-822.49017547,0.0002,2]
[358417314,1745099438326,-468.40396298,0.0002,2]
[358417315,1745099438338,-797.00000001,0.0002,2]
[358417316,1745099438357,-6699.36597862,0.0002,2]
[358417317,1745099438397,-649.58686008,0.0002,2]
[358417318,1745099438416,-546.55399976,0.0002,2]
[358417320,1745099438432,-8916.57994639,0.0002,2]
[358417322,1745099438443,-5559.25206961,0.0002,2]
[358417325,1745099438455,-8695.33159424,0.0002,2]
[358417360,1745099440245,-1217852.71105012,0.0002,2]
[358417377,1745099440424,-974.53992818,0.0002,2]
[358417417,1745099440805,-120452.93090694,0.0002,2]
[358417494,1745099443158,-150.548,0.00019995,2]
[358417495,1745099443168,-188.339,0.00019995,2]
[358417496,1745099443178,-163.551,0.00019995,2]
[358417497,1745099443187,-22828.80157462,0.0002,2]
[358417498,1745099445343,-54866.65970365,0.0002,2]
[358417500,1745099461163,183.08278,0.0002,23]
[358417502,1745099503942,183.08278,0.0002,23]
[358417503,1745099517419,450.0,0.00017,2]
[358417504,1745099518497,500.0,0.00019,2]
[358417505,1745099546748,183.08278,0.0002,23]
[358417506,1745099589544,183.08278,0.0002,23]
[358417507,1745099605279,500.0,0.00018848,2]
[358417508,1745099605915,157.958131,0.00034813,120]
[358417509,1745099611597,538.94792,0.00034813,120]
[358417510,1745099618639,200.0,0.00041213,120]
[358417511,1745099632364,183.08279407,0.0002,23]
[358417512,1745099675135,183.08279,0.0002,23]
[358417513,1745099681191,500.0,0.00048347,120]
[358417514,1745099681421,500.0,0.00048347,120]
[358417515,1745099681904,500.0,0.00048347,120]
[358417516,1745099732388,1627.21,0.00019305,2]
[358417517,1745099910771,630.568,0.00039645,55]
[358417519,1745100124071,200.0,0.00048332,120]
[358417520,1745100124380,151.0,0.00048332,120]
[358417521,1745100124941,151.0,0.00048332,120]
[358417522,1745100125077,156.587,0.00048332,120]
[358417523,1745100125549,151.0,0.00048332,120]
[358417524,1745100125760,162.380719,0.00048332,120]
[358417525,1745100126164,151.0,0.00048332,120]
[358417526,1745100126376,168.3888056,0.00048332,120]
[358417527,1745100126778,151.0,0.00048332,120]
[358417528,1745100127002,174.61919141,0.00048332,120]
[358417529,1745100127910,151.0,0.00048332,120]
[358417530,1745100128130,181.08010149,0.00048332,120]
[358417531,1745100128572,151.0,0.00048332,120]
[358417532,1745100128928,187.78006525,0.00048332,120]
[358417533,1745100129477,194.72792766,0.00048332,120]
[358417534,1745100130278,201.93286099,0.00048332,120]
[358417535,1745100130921,201.93286099,0.00048332,120]
[358417536,1745100154397,180.63,0.00027425,30]
[358417537,1745100205494,2000.0,0.00041213,120]
[358417538,1745100213115,200.0,0.00041213,120]
[358417539,1745100219309,150.0,0.00041213,30]
[358417540,1745100227910,150.0,0.00041213,30]
[358417541,1745100230908,150.0,0.00041213,30]
[358417542,1745100239683,150.0,0.00041213,30]
[358417543,1745100242094,150.0,0.00041213,30]
[358417544,1745100262591,150.0,0.00041213,30]
[358417545,1745100263885,150.0,0.00041213,30]
[358417546,1745100273889,150.0,0.00041213,30]
[358417547,1745100275070,150.0,0.00041213,30]
[358417549,1745100285831,154.894,0.00041213,30]
[358417550,1745100286217,150.0,0.00041213,30]
[358417551,1745100297433,150.0,0.00041213,30]
[358417552,1745100303176,456.26040654,0.00048331,120]
[358417553,1745100317703,500.0,0.00048331,120]
[358417554,1745100317958,500.0,0.00048331,120]
[358417555,1745100318258,500.0,0.00048331,120]
[358417556,1745100318534,500.0,0.00048331,120]
[358417557,1745100318785,529.51138379,0.00048331,120]
[358417558,1745100327558,150.0,0.000438,70]
[358417559,1745100332587,192.607,0.000438,30]
[358417560,1745100343948,150.0,0.000438,30]
[358417561,1745100344192,1000.0,0.00048331,30]
[358417562,1745100344768,1000.0,0.00048331,30]
[358417563,1745100345310,1000.0,0.00048331,30]
[358417564,1745100345851,1000.0,0.00048331,30]
[358417565,1745100346392,1000.0,0.00048331,30]
[358417566,1745100347359,1000.0,0.00048331,30]
[358417567,1745100347903,1000.0,0.00048331,30]
[358417568,1745100348580,1000.0,0.00048331,30]
[358417569,1745100349424,1000.0,0.00048331,30]
[358417570,1745100350006,1000.0,0.00048331,30]
[358417571,1745100350615,1000.0,0.00048331,30]
[358417572,1745100353102,1000.0,0.00048331,30]
[358417573,1745100353728,1000.0,0.00048331,30]
[358417574,1745100354539,1000.0,0.00048331,30]
[358417575,1745100355494,1000.0,0.00048331,30]
[358417576,1745100356460,1000.0,0.00048331,30]
[358417577,1745100357206,1000.0,0.00048331,30]
[358417578,1745100358064,1000.0,0.00048331,30]
[358417579,1745100358597,1000.0,0.00048331,30]
[358417580,1745100359143,1000.0,0.00048331,30]
[358417581,1745100359685,1000.0,0.00048331,30]
[358417582,1745100360239,1000.0,0.00048331,30]
[358417583,1745100360838,1000.0,0.00048331,30]
[358417584,1745100361374,1000.0,0.00048331,30]
[358417585,1745100361971,1000.0,0.00048331,30]
[358417586,1745100362509,1000.0,0.00048331,30]
[358417588,1745100363040,1000.0,0.00048331,30]
[358417589,1745100363571,1000.0,0.00048331,30]
[358417590,1745100364118,1000.0,0.00048331,30]
[358417591,1745100364814,827.72987865,0.00048331,30]
[358417592,1745100366154,500.0,0.00048331,120]
[358417593,1745100366420,500.0,0.00048331,120]
[358417594,1745100366975,500.0,0.00048331,120]
[358417595,1745100367523,500.0,0.00048331,120]
[358417596,1745100367600,349.37013325,0.00048331,120]
[358417597,1745100386354,212.4617084,0.000372,120]
[358417598,1745100424419,219.57046761,0.00048331,120]
[358417599,1745100424918,500.0,0.00048331,120]
[358417600,1745100425129,200.0,0.00048331,120]
[358417601,1745100425578,518.5,0.00048331,120]
[358417602,1745100426215,537.6845,0.00048331,120]
[358417603,1745100426276,207.4,0.00048331,120]
[358417604,1745100426848,557.5788265,0.00048331,120]
[358417605,1745100426928,215.0738,0.00048331,120]
[358417606,1745100427509,578.20924308,0.00048331,120]
[358417607,1745100427574,223.0315306,0.00048331,120]
[358417608,1745100428188,599.60298507,0.00048331,120]
[358417609,1745100428245,231.28369723,0.00048331,120]
[358417610,1745100428839,621.78829552,0.00048331,120]
[358417611,1745100429069,239.84119403,0.00048331,120]
[358417612,1745100429516,644.79446246,0.00048331,120]
[358417613,1745100430111,248.71531821,0.00048331,120]
[358417614,1745100430240,644.79446246,0.00048331,120]
[358417615,1745100430369,257.91778498,0.00048331,120]
[358417616,1745100430976,267.46074303,0.00048331,120]
[358417617,1745100431606,277.35679052,0.00048331,120]
[358417618,1745100432542,287.61899177,0.00048331,120]
[358417619,1745100433205,298.26089446,0.00048331,120]
[358417620,1745100433860,309.29654756,0.00048331,120]
[358417621,1745100434609,320.74051982,0.00048331,120]
[358417622,1745100435693,332.60791905,0.00048331,120]
[358417623,1745100436363,344.91441206,0.00048331,120]
[358417624,1745100436995,357.6762453,0.00048331,120]
[358417625,1745100437614,370.91026638,0.00048331,120]
[358417626,1745100438231,384.63394623,0.00048331,120]
[358417627,1745100439351,384.63394623,0.00048331,120]
[358417628,1745100505082,-156.4479046,0.00019799,2]
[358417629,1745100505107,-250.0,0.00019824,2]
[358417630,1745100505136,-300.0,0.00019899,2]
[358417631,1745100505332,-300.0,0.00019899,2]
[358417632,1745100505360,-500.0,0.000199,2]
[358417633,1745100505384,-3423.3978,0.000199,2]
[358417634,1745100505409,-9148.2544,0.000199,2]
[358417635,1745100505433,-182.35642941,0.000199,2]
[358417636,1745100505459,-165.12734422,0.000199,2]
[358417637,1745100505485,-2990.3300543,0.000199,2]
[358417638,1745100505510,-780.90388609,0.000199,2]
[358417639,1745100505534,-780.9038861,0.000199,2]
[358417640,1745100505558,-311.73011261,0.00019973,2]
[358417641,1745100505583,-500.0,0.00019973,2]
[358417642,1745100505607,-151.851,0.00019995,2]
[358417643,1745100505632,-150.0,0.00019995,2]
[358417644,1745100505657,-253.434,0.00019995,2]
[358417645,1745100505681,-182.123,0.00019995,2]
[358417646,1745100505704,-258.041,0.00019995,2]
[358417647,1745100505727,-172.38,0.00019995,2]
[358417648,1745100505749,-374.0,0.00019995,2]
[358417649,1745100505774,-152.0,0.00019995,2]
[358417650,1745100505798,-794.0,0.00019995,2]
[358417651,1745100505822,-193.016,0.00019995,2]
[358417652,1745100505846,-863.0,0.00019995,2]
[358417653,1745100505871,-300.0,0.00019999,2]
[358417654,1745100505894,-500.0,0.00019999,2]
[358417655,1745100505919,-499.20389494,0.00019999,2]
[358417656,1745100505944,-125367.49928773,0.0002,2]
[358417657,1745100509023,-3562.36358316,0.000199,2]
[358417658,1745100509052,-96437.63641684,0.0002,2]
[358417659,1745100511503,-52580.31534748,0.0002,2]
[358417660,1745100511529,-47419.68465252,0.0002,2]
[358417661,1745100523539,-100000.0,0.0002,2]
[358417662,1745100529158,-51699.9049855,0.0002,2]
[358417663,1745100529181,-46300.0950145,0.0002,2]
[358417664,1745100597134,-156.4479046,0.00019799,2]
[358417665,1745100604567,-300.0,0.00019899,2]
[358417666,1745100604595,-250.0,0.000199,2]
[358417667,1745100604642,-334.0305461,0.000199,2]
[358417668,1745100604676,-650.52851154,0.000199,2]
[358417669,1745100604705,-15527.75590096,0.000199,2]
[358417681,1745100632110,-250.0,0.000199,2]
[358417682,1745100632120,-200.0,0.00019973,2]
[358417683,1745100632130,-500.0,0.00019973,2]
[358417684,1745100632141,-890.36993761,0.0002,2]
[358417685,1745100637078,-156.4479046,0.00019799,2]
[358417686,1745100637088,-20242.63063023,0.0002,2]
[358417767,1745100640657,-416.70587996,0.0002,2]
[358417777,1745100643372,-4740.45122594,0.0002,2]
[358417778,1745100643382,-40752.13773197,0.0002,2]
[358417783,1745100645344,-2374.90905544,0.000199,2]
[358417784,1745100645353,-238345.72704899,0.0002,2]
[358417792,1745100711830,923.18,0.00032877,120]
[358417793,1745100716366,200.0,0.00048331,30]
[358417794,1745100716714,336.889999,0.00048331,30]
[358417795,1745100724131,200.0,0.00048331,120]
[358417796,1745100724760,207.4,0.00048331,120]
[358417797,1745100725384,215.0738,0.00048331,120]
[358417798,1745100726007,223.0315306,0.00048331,120]
[358417799,1745100726701,231.28369723,0.00048331,120]
[358417800,1745100727351,239.84119403,0.00048331,120]
[358417801,1745100728129,248.71531821,0.00048331,120]
[358417802,1745100728603,257.91778498,0.00048331,120]
[358417803,1745100729284,267.46074303,0.00048331,120]
[358417804,1745100729931,277.35679052,0.00048331,120]
[358417805,1745100730551,287.61899177,0.00048331,120]
[358417806,1745100731178,298.26089446,0.00048331,120]
[358417807,1745100731802,309.29654756,0.00048331,120]
[358417808,1745100732552,320.74051982,0.00048331,120]
[358417809,1745100733196,332.60791905,0.00048331,120]
[358417810,1745100733813,344.91441206,0.00048331,120]
[358417811,1745100734424,357.6762453,0.00048331,120]
[358417812,1745100735071,370.91026638,0.00048331,120]
[358417813,1745100736262,384.63394623,0.00048331,120]
[358417814,1745100736916,384.63394623,0.00048331,120]
[358417815,1745100809541,1486.417317,0.00041213,120]
[358417816,1745100825637,150.0,0.00041213,30]
[358417817,1745100913861,1545.84,0.00019197,2]
[358417818,1745101017035,-156.4479047,0.00019799,2]
[358417819,1745101023895,-300.0,0.00019899,2]
[358417820,1745101023920,-500.0,0.000199,2]
[358417821,1745101023946,-10487.7852,0.000199,2]
[358417822,1745101023971,-3490.8322,0.000199,2]
[358417823,1745101023997,-2260.82617672,0.000199,2]
[358417824,1745101024023,-1000.0,0.000199,2]
[358417825,1745101024050,-158.68254028,0.000199,2]
[358417826,1745101024090,-222.68703074,0.000199,2]
[358417827,1745101024119,-557.70803606,0.000199,2]
[358417828,1745101024148,-165.12734422,0.000199,2]
[358417829,1745101024286,180.0,0.00048331,60]
[358417830,1745101025201,200.0,0.00048331,120]
[358417831,1745101025792,207.4,0.00048331,120]
[358417832,1745101026421,215.0738,0.00048331,120]
[358417833,1745101027049,223.0315306,0.00048331,120]
[358417834,1745101027680,231.28369723,0.00048331,120]
[358417835,1745101028306,239.84119403,0.00048331,120]
[358417836,1745101028943,248.71531821,0.00048331,120]
[358417837,1745101029567,257.91778498,0.00048331,120]
[358417838,1745101030205,267.46074303,0.00048331,120]
[358417839,1745101030812,277.35679052,0.00048331,120]
[358417840,1745101031468,287.61899177,0.00048331,120]
[358417841,1745101032900,298.26089446,0.00048331,120]
[358417842,1745101034089,309.29654756,0.00048331,120]
[358417843,1745101035104,320.74051982,0.00048331,120]
[358417844,1745101035342,332.60791905,0.00048331,120]
[358417845,1745101035942,344.91441206,0.00048331,120]
[358417846,1745101036572,357.6762453,0.00048331,120]
[358417847,1745101037241,370.91026638,0.00048331,120]
[358417848,1745101037853,384.63394623,0.00048331,120]
[358417849,1745101038467,384.63394623,0.00048331,120]
[358417850,1745101069468,-156.4479047,0.00019799,2]
[358417851,1745101069492,-1583.27270362,0.000199,2]
[358417852,1745101069515,-1404.9015953,0.000199,2]
[358417854,1745101110855,1063.904,0.000422,63]
[358417855,1745101116968,-1063.904,0.000196,2]
[358417856,1745101116992,-191.71473719,0.000196,2]